fUSD/lending_fUSD_20260228
["ID","MTS","AMOUNT","RATE_DAILY","PERIOD"]
[406875174,1772259043174,-276.97407445,0.00014795,2]
[406875175,1772259043183,-1508.05702942,0.00014795,2]
[406875176,1772259043193,-1093.78241863,0.00014795,2]
[406875177,1772259043202,-1500.0,0.00014795,2]
[406875178,1772259043211,-1043.57929262,0.00014795,2]
[406875179,1772259043220,-250.0,0.00015,2]
[406875180,1772259043230,-16269.46765554,0.00015207,2]
[406875181,1772259043239,-1650.76292993,0.00015342,2]
[406875182,1772259043249,-2000.0,0.00015342,2]
[406875183,1772259043258,-2000.0,0.00015342,2]
[406875184,1772259043268,-8700.77768466,0.00015378,2]
[406875185,1772259043277,-1551.29250526,0.00015591,2]
[406875186,1772259043286,-2500.0,0.0001589,2]
[406875187,1772259043295,-2500.0,0.0001589,2]
[406875188,1772259043304,-16269.46765554,0.00016104,2]
[406875189,1772259043313,-728.43481616,0.00016153,2]
[406875190,1772259043323,-8700.77768466,0.00016218,2]
[406875191,1772259043332,-168.0,0.00016691,2]
[406875192,1772259043341,-1551.29250526,0.00016746,2]
[406875193,1772259043350,-168.0,0.00016822,2]
[406875194,1772259043359,-168.0,0.00016833,2]
[406875195,1772259043369,-168.0,0.00016934,2]
[406875196,1772259043379,-197.44552864,0.00016959,2]
[406875197,1772259043388,-4874.95632244,0.00016959,2]
[406875198,1772259043397,-300.0,0.00017,2]
[406875199,1772259043406,-147513.0296702,0.00017,2]
[406875200,1772259043415,-16269.46765554,0.00017002,2]
[406875201,1772259043425,-8700.77768466,0.00017059,2]
[406875202,1772259043434,-1500.0,0.0001711,2]
[406875203,1772259043444,-1500.0,0.0001711,2]
[406875204,1772259043453,-2632.101218,0.0001711,2]
[406875205,1772259043463,-168.0,0.00017129,2]
[406875206,1772259043472,-2822.73754814,0.0001715,2]
[406875207,1772259043482,-168.0,0.00017387,2]
[406875208,1772259043491,-4874.95632243,0.0001743,2]
[406875209,1772259043500,-168.0,0.000175,2]
[406875210,1772259043510,-694.42441671,0.000175,3]
[406875211,1772259043519,-5616.53495309,0.000175,3]
[406875212,1772259043529,-6400.0,0.000175,6]
[406875213,1772259043538,-168.0,0.00017507,2]
[406875214,1772259043548,-168.0,0.00017513,2]
[406875215,1772259043557,-1200.0,0.000176,6]
[406875216,1772259043566,-168.0,0.00017608,2]
[406875217,1772259043575,-281.27422717,0.00017698,2]
[406875218,1772259043584,-150.0,0.00017698,2]
[406875219,1772259043593,-246.91345338,0.00017698,2]
[406875220,1772259043602,-150.0,0.00017698,2]
[406875221,1772259043611,-500.0,0.00017698,2]
[406875222,1772259043620,-500.0,0.00017698,2]
[406875223,1772259043630,-150.0,0.00017698,2]
[406875225,1772259043639,-150.0,0.00017698,2]
[406875227,1772259043648,-150.0,0.00017698,2]
[406875229,1772259043657,-150.0,0.00017698,2]
[406875231,1772259043666,-153.47951727,0.00017698,2]
[406875233,1772259043675,-500.0,0.00017698,2]
[406875236,1772259043684,-150.0,0.00017698,2]
[406875239,1772259043694,-1200.0,0.000177,6]
[406875241,1772259043703,-168.0,0.00017733,2]
[406875244,1772259043712,-150.0,0.00017753,2]
[406875246,1772259043722,-258.96996012,0.00017753,2]
[406875249,1772259043731,-500.0,0.00017753,2]
[406875252,1772259043740,-574.74754567,0.00017753,2]
[406875254,1772259043750,-150.0,0.00017753,2]
[406875255,1772259043759,-150.0,0.00017753,2]
[406875256,1772259043768,-500.0,0.00017753,2]
[406875258,1772259043778,-210.79603747,0.00017753,2]
[406875260,1772259043788,-1200.0,0.000178,6]
[406875261,1772259043798,-150.0,0.00017808,2]
[406875262,1772259043807,-500.0,0.00017808,2]
[406875263,1772259043816,-210.6018127,0.00017808,2]
[406875264,1772259043825,-251.37506929,0.00017808,2]
[406875265,1772259043834,-500.0,0.00017808,2]
[406875266,1772259043843,-500.0,0.00017808,2]
[406875267,1772259043853,-800.0,0.00017808,2]
[406875268,1772259043862,-150.0,0.00017862,2]
[406875269,1772259043871,-500.0,0.00017862,2]
[406875270,1772259043881,-500.0,0.00017862,2]
[406875271,1772259043890,-500.0,0.00017863,2]
[406875272,1772259043900,-1075.2658489,0.0001789,2]
[406875273,1772259043909,-168.0,0.000179,2]
[406875274,1772259043918,-8700.77768466,0.000179,2]
[406875275,1772259043927,-1200.0,0.000179,6]
[406875276,1772259043936,-3114.59229983,0.000179,2]
[406875277,1772259043946,-16269.46765554,0.000179,2]
[406875278,1772259043955,-4874.95632243,0.000179,2]
[406875279,1772259043964,-1551.29250526,0.000179,2]
[406875280,1772259043974,-728.43481616,0.000179,2]
[406875281,1772259043984,-191.4720797,0.00017917,2]
[406875282,1772259043993,-500.0,0.00017917,2]
[406875283,1772259044003,-500.0,0.00017917,2]
[406875284,1772259044012,-500.0,0.00017918,2]
[406875285,1772259044022,-168.0,0.00017955,2]
[406875286,1772259044032,-500.0,0.00017972,2]
[406875287,1772259044041,-500.0,0.00017972,2]
[406875288,1772259044051,-243.78913034,0.00017972,2]
[406875289,1772259044060,-300.0,0.00017999,2]
[406875290,1772259044070,-300.0,0.00017999,2]
[406875291,1772259044080,-500.0,0.00017999,2]
[406875292,1772259044093,-500.0,0.00017999,2]
[406875293,1772259044102,-500.0,0.00017999,2]
[406875294,1772259044111,-500.0,0.00017999,2]
[406875295,1772259044121,-500.0,0.00017999,2]
[406875296,1772259044130,-500.0,0.00017999,2]
[406875297,1772259044139,-500.0,0.00017999,2]
[406875298,1772259044149,-336.44772745,0.00017999,2]
[406875299,1772259044158,-300.0,0.00017999,2]
[406875300,1772259044168,-292.6907697,0.00017999,2]
[406875301,1772259044177,-300.0,0.00017999,2]
[406875302,1772259044186,-2141416.42400103,0.00018,2]
[406875303,1772259044202,-754.28381952,0.00018,2]
[406875304,1772259044213,-46083.07634884,0.00018,2]
[406875305,1772259044231,-2764935.64860981,0.00018,2]
[406875306,1772259044345,-3495.37719004,0.00018,2]
[406875307,1772259044455,-660.6033192,0.00018,2]
[406875308,1772259044467,-68929.88543208,0.00018,2]
[406875309,1772259044479,-2200.0,0.00018,2]
[406875312,1772259046052,-18651.43215627,0.00018,2]
[406875313,1772259046110,-2723.65229943,0.00018,2]
[406875314,1772259046122,-1040.09634434,0.00018,2]
[406875315,1772259046134,-6075.31636364,0.00018,2]
[406875316,1772259046168,-1844.77165021,0.00018,2]
[406875325,1772259193702,200.0,9.8e-05,3]
[406875326,1772259195791,400.0,9.9e-05,3]
[406875327,1772259197878,600.0,0.0001,3]
[406875328,1772259253619,200.0,9.8e-05,3]
[406875329,1772259255772,500.0,9.9e-05,3]
[406875330,1772259257868,700.0,0.0001,3]
[406875331,1772259293837,700.0,9.8e-05,3]
[406875332,1772259295966,1400.0,9.9e-05,3]
[406875333,1772259298058,2200.0,0.0001,3]
[406875334,1772259643469,384.34684002,8.573e-05,2]
[406875335,1772259643495,115.65315998,8.573e-05,2]
[406875337,1772259995938,95.7875491,6.971e-05,2]
[406875338,1772259995966,97.3624509,6.971e-05,2]
[406875339,1772260034772,900.0,9.7e-05,3]
[406875340,1772260036856,1900.0,9.8e-05,3]
[406875341,1772260038948,2800.0,9.9e-05,3]
[406875342,1772260041050,3800.0,0.0001,3]
[406875343,1772260106560,56.6375491,8.673e-05,2]
[406875362,1772260232244,-995.88708944,8.65e-05,2]
[406875363,1772260232256,-504.11291056,8.65e-05,2]
[406875364,1772260232265,-298.38453609,8.661e-05,2]
[406875365,1772260232276,-207.2324509,8.673e-05,2]
[406875366,1772260232285,-500.0,8.673e-05,2]
[406875367,1772260232295,-500.0,8.673e-05,2]
[406875368,1772260232304,-193.15,8.714e-05,2]
[406875369,1772260232314,-183.540127,9.025e-05,2]
[406875370,1772260232324,-500.0,9.154e-05,2]
[406875371,1772260232334,-344.79937257,9.211e-05,2]
[406875372,1772260232343,-1200.0,9.22e-05,2]
[406875373,1772260232352,-300.0,9.22e-05,2]
[406875374,1772260232361,-1000.0,9.221e-05,2]
[406875375,1772260232372,-1053.27126755,9.221e-05,2]
[406875376,1772260232384,-64.56574614,9.221e-05,2]
[406875377,1772260232393,-344.79937257,9.356e-05,2]
[406875378,1772260232403,-300.0,9.404e-05,2]
[406875379,1772260232416,-300.0,9.404e-05,2]
[406875380,1772260232431,-601.0,9.405e-05,2]
[406875381,1772260232440,-152.614,9.408e-05,2]
[406875382,1772260232449,-1069.292,9.408e-05,2]
[406875383,1772260232459,-150.0,9.447e-05,2]
[406875384,1772260232470,-150.99,9.448e-05,2]
[406875385,1772260232480,-5433.82,9.448e-05,2]
[406875386,1772260232489,-299.99,9.448e-05,2]
[406875387,1772260232498,-2393.38235535,9.448e-05,2]
[406875388,1772260232510,-7606.60764465,9.448e-05,2]
[406875390,1772260232519,-1805.89235535,9.448e-05,2]
[406875392,1772260232531,-1703.82764465,9.448e-05,2]
[406875393,1772260232540,-9999.99,9.448e-05,2]
[406875395,1772260232549,-14302.84,9.449e-05,2]
[406875397,1772260232558,-13711.0,9.5e-05,2]
[406875399,1772260232567,-2500.0,9.5e-05,2]
[406875401,1772260232577,-344.79937257,9.5e-05,2]
[406875402,1772260232586,-1000.0,9.539e-05,2]
[406875404,1772260232596,-151.0,9.597e-05,2]
[406875406,1772260232605,-500.0,9.599e-05,2]
[406875407,1772260232615,-329.30149999,9.599e-05,2]
[406875408,1772260232625,-500.0,9.599e-05,2]
[406875409,1772260232634,-500.0,9.599e-05,2]
[406875410,1772260232643,-500.0,9.599e-05,2]
[406875411,1772260232652,-500.0,9.599e-05,2]
[406875412,1772260232661,-500.0,9.599e-05,2]
[406875413,1772260232675,-500.0,9.599e-05,2]
[406875414,1772260232684,-500.0,9.599e-05,2]
[406875415,1772260232693,-500.0,9.599e-05,2]
[406875416,1772260232703,-500.0,9.599e-05,2]
[406875417,1772260232712,-500.0,9.599e-05,2]
[406875418,1772260232721,-500.0,9.599e-05,2]
[406875419,1772260232731,-500.0,9.599e-05,2]
[406875420,1772260232740,-500.0,9.599e-05,2]
[406875421,1772260232749,-500.0,9.599e-05,2]
[406875422,1772260232758,-500.0,9.599e-05,2]
[406875423,1772260232767,-500.0,9.599e-05,2]
[406875424,1772260232776,-500.0,9.599e-05,2]
[406875425,1772260232785,-307.92099046,9.599e-05,2]
[406875433,1772260232980,-500.0,9.599e-05,2]
[406875434,1772260233000,-500.0,9.599e-05,2]
[406875435,1772260233010,-500.0,9.599e-05,2]
[406875436,1772260233019,-500.0,9.599e-05,2]
[406875437,1772260233028,-500.0,9.599e-05,2]
[406875438,1772260233038,-500.0,9.599e-05,2]
[406875439,1772260233048,-500.0,9.599e-05,2]
[406875440,1772260233058,-500.0,9.599e-05,2]
[406875441,1772260233068,-500.0,9.599e-05,2]
[406875442,1772260233078,-500.0,9.599e-05,2]
[406875443,1772260233088,-500.0,9.599e-05,2]
[406875444,1772260233097,-500.0,9.599e-05,2]
[406875445,1772260233106,-500.0,9.599e-05,2]
[406875446,1772260233116,-500.0,9.599e-05,2]
[406875447,1772260233125,-250.0,9.599e-05,2]
[406875448,1772260233140,-2314.26145023,9.7e-05,2]
[406875449,1772260233149,-1884.71572843,9.7e-05,2]
[406875450,1772260233161,-3245.89942491,9.7e-05,2]
[406875451,1772260233170,-3265.15057509,9.7e-05,2]
[406875452,1772260233187,-618.80325975,9.7e-05,2]
[406875453,1772260233199,-520.49846645,9.7e-05,2]
[406875454,1772260233211,-461.17361602,9.7e-05,2]
[406875455,1772260233224,-818.39091974,9.7e-05,2]
[406875456,1772260233233,-1062.33775238,9.768e-05,2]
[406875457,1772260233243,-195.20486821,9.789e-05,2]
[406875458,1772260233260,-931.89,9.789e-05,2]
[406875459,1772260233271,-255.51004428,9.789e-05,2]
[406875460,1772260233283,-402.22786542,9.789e-05,2]
[406875461,1772260233295,-421.0,9.789e-05,2]
[406875462,1772260233306,-253.734,9.789e-05,2]
[406875463,1772260233804,-2820.59322209,9.789e-05,2]
[406875464,1772260233814,-151.0,9.847e-05,2]
[406875465,1772260233824,-448.97518863,9.873e-05,2]
[406875466,1772260233833,-230.0,9.881e-05,2]
[406875467,1772260233843,-500.0,0.0001,2]
[406875468,1772260233853,-500.0,0.0001,2]
[406875469,1772260233863,-500.0,0.0001,2]
[406875470,1772260233873,-500.0,0.0001,2]
[406875471,1772260233882,-500.0,0.0001,2]
[406875472,1772260233891,-500.0,0.0001,2]
[406875473,1772260233901,-500.0,0.0001,2]
[406875474,1772260233911,-500.0,0.0001,2]
[406875475,1772260233920,-500.0,0.0001,2]
[406875476,1772260233932,-500.0,0.0001,2]
[406875477,1772260233941,-151.0,0.0001,2]
[406875478,1772260233951,-500.0,0.0001,2]
[406875479,1772260233960,-500.0,0.0001,2]
[406875480,1772260233970,-151.0,0.0001,2]
[406875481,1772260233979,-500.0,0.0001,2]
[406875482,1772260233992,-500.0,0.0001,2]
[406875483,1772260234001,-151.0,0.0001,2]
[406875484,1772260234011,-500.0,0.0001,2]
[406875485,1772260234019,-500.0,0.0001,2]
[406875486,1772260234030,-500.0,0.0001,2]
[406875487,1772260234039,-151.0,0.0001,2]
[406875488,1772260234048,-500.0,0.0001,2]
[406875489,1772260234057,-334.50866629,0.0001,2]
[406875490,1772260234067,-151.0,0.0001,2]
[406875491,1772260234076,-500.0,0.0001,2]
[406875492,1772260234086,-151.0,0.0001,2]
[406875493,1772260234096,-500.0,0.0001,2]
[406875494,1772260234106,-151.0,0.0001,2]
[406875495,1772260234116,-500.0,0.0001,2]
[406875496,1772260234125,-151.0,0.0001,2]
[406875497,1772260234135,-151.0,0.0001,2]
[406875498,1772260234144,-151.0,0.0001,2]
[406875499,1772260234154,-151.0,0.0001,2]
[406875500,1772260234164,-151.0,0.0001,2]
[406875501,1772260234176,-151.0,0.0001,2]
[406875502,1772260234185,-151.0,0.0001,2]
[406875503,1772260234195,-151.0,0.0001,2]
[406875504,1772260234204,-151.0,0.0001,2]
[406875505,1772260234214,-151.0,0.0001,2]
[406875506,1772260234223,-151.0,0.0001,2]
[406875507,1772260234232,-151.0,0.0001,2]
[406875508,1772260234241,-151.0,0.0001,2]
[406875509,1772260234251,-151.0,0.0001,2]
[406875510,1772260234260,-151.0,0.0001,2]
[406875511,1772260234270,-151.0,0.0001,2]
[406875512,1772260234279,-151.0,0.0001,2]
[406875513,1772260234288,-151.0,0.0001,2]
[406875514,1772260234298,-151.0,0.0001,2]
[406875515,1772260234307,-151.0,0.0001,2]
[406875516,1772260234316,-151.0,0.0001,2]
[406875517,1772260234325,-151.0,0.0001,2]
[406875518,1772260234335,-151.0,0.0001,2]
[406875519,1772260234344,-151.0,0.0001,2]
[406875520,1772260234353,-151.0,0.0001,2]
[406875521,1772260234362,-151.0,0.0001,2]
[406875522,1772260234374,-1680.0,0.00010142,2]
[406875523,1772260234383,-4000.0,0.00010188,2]
[406875524,1772260234393,-500.0,0.000103,2]
[406875525,1772260234403,-500.60351731,0.000103,2]
[406875526,1772260234412,-500.0,0.000103,2]
[406875527,1772260234421,-500.0,0.000103,2]
[406875528,1772260234432,-500.0,0.000103,2]
[406875529,1772260234442,-600.0,0.000103,2]
[406875530,1772260234453,-500.0,0.000103,2]
[406875531,1772260234462,-500.0,0.000103,2]
[406875532,1772260234474,-500.0,0.000103,2]
[406875533,1772260234483,-501.73395608,0.000103,2]
[406875534,1772260234493,-501.69063907,0.000103,2]
[406875535,1772260234503,-500.0,0.000103,2]
[406875536,1772260234512,-500.0,0.000103,2]
[406875537,1772260234522,-500.0,0.000103,2]
[406875538,1772260234532,-500.0,0.000103,2]
[406875539,1772260234542,-500.0,0.000103,2]
[406875540,1772260234552,-500.0,0.000103,2]
[406875541,1772260234562,-500.0,0.000103,2]
[406875542,1772260234571,-500.0,0.000103,2]
[406875543,1772260234580,-500.0,0.000103,2]
[406875544,1772260234589,-500.0,0.000103,2]
[406875545,1772260234599,-500.0,0.000103,2]
[406875546,1772260234608,-500.0,0.000103,2]
[406875547,1772260234620,-500.0,0.000103,2]
[406875548,1772260234634,-500.0,0.000103,2]
[406875549,1772260234647,-500.0,0.000103,2]
[406875550,1772260234659,-500.0,0.000103,2]
[406875551,1772260234670,-900.23919341,0.000103,2]
[406875552,1772260234684,-532.01062926,0.000103,2]
[406875553,1772260234695,-500.0,0.000103,2]
[406875554,1772260234705,-500.0,0.000103,2]
[406875555,1772260234715,-500.0,0.000103,2]
[406875556,1772260234727,-500.0,0.000103,2]
[406875557,1772260234739,-500.0,0.000103,2]
[406875558,1772260234751,-500.0,0.000103,2]
[406875559,1772260234762,-500.0,0.000103,2]
[406875560,1772260234774,-710.68871512,0.000103,2]
[406875561,1772260234785,-500.0,0.000103,2]
[406875562,1772260234796,-500.0,0.000103,2]
[406875563,1772260234808,-979.04045203,0.000103,2]
[406875564,1772260234819,-500.0,0.000103,2]
[406875565,1772260234832,-700.0,0.000103,2]
[406875566,1772260234843,-506.8082533,0.000103,2]
[406875567,1772260234855,-357.76007336,0.000103,2]
[406875568,1772260234870,-142.23992664,0.000103,2]
[406875569,1772260234881,-846.17991336,0.000103,2]
[406875585,1772260238480,-77.20420719,0.000103,2]
[406875586,1772260238491,-500.0,0.000103,2]
[406875587,1772260238503,-637.82024133,0.000103,2]
[406875588,1772260238514,-288.17736553,0.000103,2]
[406875589,1772260238528,-211.82263447,0.000103,2]
[406875590,1772260238541,-500.0,0.000103,2]
[406875591,1772260238553,-500.0,0.000103,2]
[406875592,1772260238564,-751.52454982,0.000103,2]
[406875593,1772260238575,-500.0,0.000103,2]
[406875594,1772260238586,-500.0,0.000103,2]
[406875595,1772260238597,-500.0,0.000103,2]
[406875596,1772260238610,-431.41406322,0.000103,2]
[406875597,1772260238624,-68.58593678,0.000103,2]
[406875598,1772260238635,-219.61387122,0.000103,2]
[406875599,1772260238649,-580.06267641,0.000103,2]
[406875600,1772260238659,-248.66732359,0.000103,2]
[406875613,1772260240574,-251.33267641,0.000103,2]
[406875614,1772260240586,-206.4322363,0.000103,2]
[406875615,1772260240599,-293.5677637,0.000103,2]
[406875616,1772260240611,-25.85025843,0.000103,2]
[406875617,1772260240749,-474.75325888,0.000103,2]
[406875618,1772260240761,-500.0,0.000103,2]
[406875619,1772260240772,-500.0,0.000103,2]
[406875620,1772260240782,-500.0,0.000103,2]
[406875621,1772260240794,-512.43302131,0.000103,2]
[406875622,1772260240805,-500.0,0.000103,2]
[406875623,1772260240816,-500.0,0.000103,2]
[406875624,1772260240828,-997.48963588,0.000103,2]
[406875625,1772260240839,-1000.0,0.00010333,2]
[406875626,1772260240850,-32888.5933,0.00010333,2]
[406875627,1772260240861,-255.0,0.00010392,2]
[406875628,1772260240871,-4000.0,0.00010443,2]
[406875629,1772260240883,-193.15,0.00010457,2]
[406875630,1772260240894,-4000.0,0.00010697,2]
[406875631,1772260240905,-5034.12015555,0.000109,2]
[406875632,1772260240916,-5034.12015551,0.000109,2]
[406875633,1772260240927,-4000.0,0.00010952,2]
[406875634,1772260240943,-150.0,0.00010959,2]
[406875635,1772260240955,-184.72,0.00010959,2]
[406875636,1772260240965,-943.78455388,0.00011,2]
[406875637,1772260240976,-25940.59276975,0.00011099,2]
[406875638,1772260240987,-25940.59276971,0.00011099,2]
[406875639,1772260240997,-13818.78586986,0.00011099,2]
[406875640,1772260241009,-4875.56740919,0.00011099,2]
[406875641,1772260241027,-8943.21846059,0.00011099,2]
[406875642,1772260241038,-1512.53,0.00011129,2]
[406875643,1772260241049,-2351.0,0.00011156,2]
[406875644,1772260241059,-4000.0,0.00011207,2]
[406875645,1772260241070,-250.0,0.0001143,2]
[406875646,1772260241080,-330.0,0.00011431,2]
[406875647,1772260241091,-433.0,0.00011431,2]
[406875648,1772260241101,-25940.59276971,0.00011444,2]
[406875649,1772260241112,-13818.78586978,0.00011444,2]
[406875650,1772260241122,-174.7,0.00011653,2]
[406875651,1772260241132,-3377.93,0.0001179,2]
[406875652,1772260241143,-5034.12015551,0.00011971,2]
[406875653,1772260241153,-500.0,0.0001207,2]
[406875654,1772260241164,-500.0,0.0001207,2]
[406875655,1772260241175,-500.0,0.0001207,2]
[406875656,1772260241189,-500.0,0.0001207,2]
[406875657,1772260241200,-500.0,0.0001207,2]
[406875658,1772260241211,-500.0,0.0001207,2]
[406875659,1772260241222,-500.0,0.0001207,2]
[406875660,1772260241233,-500.0,0.0001207,2]
[406875661,1772260241244,-500.0,0.0001207,2]
[406875662,1772260241255,-500.0,0.0001207,2]
[406875663,1772260241266,-500.0,0.0001207,2]
[406875664,1772260241277,-500.0,0.0001207,2]
[406875665,1772260241287,-500.0,0.0001207,2]
[406875666,1772260241298,-500.0,0.0001207,2]
[406875667,1772260241309,-500.0,0.0001207,2]
[406875669,1772260241319,-500.0,0.0001207,2]
[406875671,1772260241330,-500.97875071,0.0001207,2]
[406875673,1772260241341,-500.0,0.0001207,2]
[406875675,1772260241352,-500.0,0.0001207,2]
[406875676,1772260241362,-500.0,0.0001207,2]
[406875678,1772260241373,-500.0,0.0001207,2]
[406875680,1772260241385,-500.0,0.0001207,2]
[406875682,1772260241396,-500.0,0.0001207,2]
[406875683,1772260241408,-500.0,0.0001207,2]
[406875686,1772260241539,-500.0,0.0001207,2]
[406875687,1772260241600,-500.0,0.0001207,2]
[406875688,1772260241611,-500.0,0.0001207,2]
[406875689,1772260241622,-500.0,0.0001207,2]
[406875690,1772260241632,-500.0,0.0001207,2]
[406875691,1772260241641,-500.0,0.0001207,2]
[406875692,1772260241651,-500.0,0.0001207,2]
[406875693,1772260241661,-500.0,0.0001207,2]
[406875694,1772260241670,-500.0,0.0001207,2]
[406875695,1772260241679,-500.0,0.0001207,2]
[406875696,1772260241692,-500.0,0.0001207,2]
[406875697,1772260241701,-500.0,0.0001207,2]
[406875698,1772260241711,-500.0,0.0001207,2]
[406875699,1772260241721,-500.0,0.0001207,2]
[406875700,1772260241730,-500.0,0.0001207,2]
[406875701,1772260241739,-500.0,0.0001207,2]
[406875702,1772260241748,-500.0,0.0001207,2]
[406875703,1772260241758,-500.0,0.0001207,2]
[406875704,1772260241769,-500.0,0.0001207,2]
[406875705,1772260241778,-251.25518206,0.0001207,2]
[406875706,1772260241788,-500.0,0.0001207,2]
[406875707,1772260241798,-500.0,0.0001207,2]
[406875708,1772260241813,-500.0,0.0001207,2]
[406875709,1772260241823,-500.0,0.0001207,2]
[406875710,1772260241832,-500.0,0.0001207,2]
[406875711,1772260241843,-500.0,0.0001207,2]
[406875712,1772260241853,-500.0,0.0001207,2]
[406875713,1772260241863,-500.0,0.0001207,2]
[406875714,1772260241872,-500.0,0.0001207,2]
[406875715,1772260241882,-502.39042287,0.0001207,2]
[406875716,1772260241892,-500.0,0.0001207,2]
[406875717,1772260241902,-500.0,0.0001207,2]
[406875718,1772260241911,-500.0,0.0001207,2]
[406875719,1772260241921,-500.0,0.0001207,2]
[406875720,1772260241930,-500.0,0.0001207,2]
[406875721,1772260241942,-500.0,0.0001207,2]
[406875722,1772260241952,-500.0,0.0001207,2]
[406875723,1772260241962,-500.0,0.0001207,2]
[406875724,1772260241972,-500.0,0.0001207,2]
[406875725,1772260241981,-500.0,0.0001207,2]
[406875726,1772260241990,-500.0,0.0001207,2]
[406875727,1772260242000,-500.0,0.0001207,2]
[406875728,1772260242009,-500.0,0.0001207,2]
[406875729,1772260242018,-500.0,0.0001207,2]
[406875730,1772260242027,-500.0,0.0001207,2]
[406875731,1772260242036,-500.0,0.0001207,2]
[406875732,1772260242046,-500.0,0.0001207,2]
[406875733,1772260242055,-500.0,0.0001207,2]
[406875734,1772260242064,-500.0,0.0001207,2]
[406875735,1772260242075,-500.0,0.0001207,2]
[406875736,1772260242084,-500.0,0.0001207,2]
[406875737,1772260242093,-500.0,0.0001207,2]
[406875738,1772260242103,-500.0,0.0001207,2]
[406875739,1772260242113,-500.0,0.0001207,2]
[406875740,1772260242124,-500.0,0.0001207,2]
[406875741,1772260242133,-2258.0,0.00012271,2]
[406875742,1772260242143,-25940.59276971,0.00012367,2]
[406875743,1772260242153,-13818.78586978,0.00012367,2]
[406875744,1772260242163,-736.0,0.00012574,2]
[406875745,1772260242174,-5034.12015551,0.00013157,2]
[406875746,1772260242187,-25940.59276971,0.00013289,2]
[406875747,1772260242197,-13818.78586978,0.00013289,2]
[406875748,1772260242207,-3240.0,0.00013425,2]
[406875749,1772260242216,-500.0,0.00013698,2]
[406875750,1772260242226,-500.0,0.00013698,2]
[406875751,1772260242235,-500.0,0.00013698,2]
[406875752,1772260242245,-500.0,0.00013698,2]
[406875753,1772260242255,-500.0,0.00013698,2]
[406875754,1772260242264,-195.98442162,0.00013698,2]
[406875755,1772260242274,-500.0,0.00013698,2]
[406875756,1772260242284,-500.0,0.00013698,2]
[406875757,1772260242293,-500.0,0.00013698,2]
[406875758,1772260242303,-500.0,0.00013698,2]
[406875759,1772260242313,-500.0,0.00013698,2]
[406875760,1772260242322,-500.0,0.00013698,2]
[406875761,1772260242332,-500.0,0.00013698,2]
[406875762,1772260242342,-500.0,0.00013698,2]
[406875763,1772260242351,-500.0,0.00013698,2]
[406875764,1772260242360,-500.0,0.00013698,2]
[406875765,1772260242371,-500.0,0.00013698,2]
[406875766,1772260242381,-500.0,0.00013698,2]
[406875767,1772260242390,-393.27599865,0.00013698,2]
[406875768,1772260242400,-500.0,0.00013698,2]
[406875769,1772260242410,-500.0,0.00013698,2]
[406875770,1772260242419,-502.22507836,0.00013698,2]
[406875771,1772260242428,-575.45701083,0.00013698,2]
[406875772,1772260242442,-161.20397096,0.00013699,2]
[406875773,1772260242454,-500.0,0.00013699,2]